Cogmind - Beta 15 @@@ ROGUE MODE // 2025.05.17 @ 13:24:51 Player: Cheeriohz Result: Destroyed by Piercing Trap Performance ------------- Evolutions (0) 0 Regions Visited (2) 400 Robots Destroyed (29) 145 Value Destroyed (694) 694 Prototype IDs (4) 80 Alien Tech Used (0) 0 Bonus (0) 0 TOTAL SCORE: 1319 Bonus ------- None Cogmind --------- Core Integrity 0/250 Matter 268/300 Energy 156/160 System Corruption 0% Temperature Cool (2) Movement Treading (160) Location -10/Subcaves Parts ------- > --- POWER (1) -------- Light Nuclear Core > --- PROPULSION (2) --- Light Treads Light Treads > --- UTILITY (2) ------ Scrap Shield > --- WEAPON (2) ------- Subdweller Machine Gun Barrage Gun > --- INVENTORY (5) ---- Structural Scanner Seismic Detector Battle Rifle Mini Grenade Launcher Ripper Peak State ------------ > --- POWER ------------ Light Nuclear Core > --- PROPULSION ------- Light Treads Light Treads > --- UTILITY ---------- High-capacity Storage Unit Power Bank > --- WEAPON ----------- Particle Cannon Light Assault Rifle > --- INVENTORY -------- Ion Engine Light Nuclear Core Light Treads Wheel Wheel Wheel Wheel Wheel Heat Sink Large Storage Unit Large Storage Unit Small Matter Pod Seismic Detector Seismic Detector Tractor Beam Particle Cannon Particle Cannon Light Assault Rifle Mini Grenade Launcher Mini Grenade Launcher [Rating: 20] Favorites ----------- Power Light Nuclear Core Engine Subdweller Power Source Power Core Light Nuclear Core Propulsion Light Treads Treads Light Treads Leg Aluminum Leg Wheel Wheel Utility High-capacity Storage Unit Device Seismic Detector Storage High-capacity Storage Unit Protection Scrap Shield Weapon Particle Cannon Energy Gun Particle Gun Energy Cannon Particle Cannon Ballistic Gun Light Assault Rifle Launcher Mini Grenade Launcher Slashing Weapon Ripper Build | -11 -10 -10 ------- Run | Yrd Mat Sub Slots Evolved . | . . . Power . | . . . Propulsion . | . . . Utility . | . . . Weapon . | . . . Parts Attached 30 | 3 13 14 Power 3 | . 2 1 Engine 1 | . . 1 Core 2 | . 2 . Reactor . | . . . Propulsion 10 | 2 6 2 Treads 4 | . 2 2 Leg . | . . . Wheel 6 | 2 4 . Hover . | . . . Flight . | . . . Utility 7 | 1 2 4 Device 3 | 1 . 2 Storage 2 | . 2 . Processor . | . . . Hackware . | . . . Protection 2 | . . 2 Artifact . | . . . Weapon 10 | . 3 7 Energy Gun 2 | . 1 1 Energy Cannon 2 | . 1 1 Ballistic Gun 4 | . 1 3 Ballistic Cannon . | . . . Launcher 1 | . . 1 Special Weapon . | . . . Impact Weapon . | . . . Slashing Weapon 1 | . . 1 Piercing Weapon . | . . . Special Melee Weapon . | . . . Unidentified Prototypes 1 | . . 1 Parts Lost 8 | . 5 3 Power 1 | . 1 . Propulsion 4 | . 3 1 Utility 1 | . . 1 Weapon 2 | . 1 1 Highest Loss Streak 2 | . 1 2 To Critical Strikes 1 | . 1 . Average Backups 12 | 6 15 11 Power 1 | 1 1 . Propulsion 3 | 4 3 2 Utility 4 | . 5 3 Weapon 3 | 1 4 3 Tool/Special . | . . . Unused Backups 21 | . 5 16 Power 2 | . . 2 Propulsion 3 | . . 3 Utility 8 | . 2 6 Weapon 8 | . 3 5 Tool/Special . | . . . Average Slot Usage (%) 94 | . 97 92 Engine 4 | . 1 6 Core 9 | . 12 7 Treads 17 | . 1 27 Wheel 10 | . 25 . Device 10 | . 14 8 Storage 10 | . 14 8 Protection 3 | . . 4 Energy Gun 8 | . 11 6 Energy Cannon 7 | . . 12 Ballistic Gun 11 | . 15 8 Peak Build Rating 20 | 7 12 20 Average Rating 11 | 6 11 12 On Entrance 8 | 6 7 12 Naked Turns . | . . . Heaviest Build 54 | 12 51 54 Greatest Support 40 | 20 40 40 Greatest Overweight (x) 5 | . 5 2 Average Overweight (x) . | . 1 . Largest Inventory Capacity 20 | 8 20 20 Average Capacity 14 | 8 17 13 Most Carried 20 | 7 20 20 Average Carried 13 | 6 15 12 Final Capacity 20 | 8 20 5 Final Carried 20 | 6 20 5 Class Distribution -------------------- 74% | Mutant 16% | Scavenger-Mutant 8% | Subdweller-Mutant Dominant Class ---------------- Mutant | -10/Materials Mutant | -10/Subcaves Resources | -11 -10 -10 ----------- Run | Yrd Mat Sub Matter Collected 924 | 396 273 255 Remotely . | . . . Salvage Created 1018 | 221 524 273 Parts 63 | 10 34 19 Haulers Intercepted 1 | . 1 . Recyclers Shooed 1 | . 1 . Parts Field Recycled . | . . . Retrieved Matter . | . . . Parts Self-Destructed 5 | . . 5 Prevented . | . . . Kills | -11 -10 -10 ------- Run | Yrd Mat Sub Combat Hostiles Destroyed 19 | . 12 7 Guns 14 | . 12 2 Cannons 4 | . . 4 AOE 1 | . . 1 Classes Destroyed 7 | 3 3 1 Worker 2 | 2 . . Tunneler 5 | 5 . . Hauler 1 | . 1 . Recycler 2 | 1 1 . Swarmer 3 | . 3 . Grunt 11 | . 9 2 Subdweller 5 | . . 5 Best Kill Streak 4 | 3 4 2 Combat Bots Only 3 | . 3 2 Max Kills in Single Turn 1 | 1 1 1 Gunslinging . | . . . Exploded 1 | . . 1 Melee . | . . . Uniques/NPCs Destroyed . | . . . Combat | -11 -10 -10 -------- Run | Yrd Mat Sub Hostile Shots Fired 99 | . 64 35 Missed 17 | . 12 5 Hits 82 | . 52 30 Projectile 82 | . 52 30 AOE 3 | . . 3 Critical Strikes 2 | . 1 1 Damage Taken 1460 | . 591 869 Core 250 | . 120 130 Absorbed by Shields . | . . . Regen/Repaired (Parts) 45 | . 45 . Core Remaining (%) 100 | 100 . . Volleys Fired 112 | 29 51 32 Largest 2 | 2 2 2 Hottest 136 | 40 85 136 Shots Fired 219 | 58 100 61 Gun 188 | 58 100 30 Cannon 28 | . . 28 Launcher 3 | . . 3 Special . | . . . Kinetic 138 | 58 64 16 Thermal 78 | . 36 42 Explosive 3 | . . 3 Electromagnetic . | . . . Robot Hit Streak 30 | 8 16 30 Robot Miss Streak 4 | 3 4 1 Penetration Max . | . . . Secondary Targets 3 | . 3 . Max Gunslinging Chain 1 | . 1 . Shots Hit Robots 142 | 32 68 42 Core Hits 51 | 11 24 16 Critical Kills . | . . . Critical Parts Destroyed 2 | 2 . . Critical Strikes 4 | 2 1 1 Burn 1 | . 1 . Destroy 3 | 2 . 1 Melee Attacks 3 | . . 3 Impact . | . . . Slashing 3 | . . 3 Piercing . | . . . Sneak Attacks . | . . . Combat Hostiles . | . . . Follow-up Attacks . | . . . Damage Inflicted 2248 | 356 877 1015 Guns 1541 | 356 877 308 Cannons 453 | . . 453 Explosions 254 | . . 254 Melee . | . . . Ramming . | . . . Kinetic 864 | 356 410 98 Thermal 1130 | . 467 663 Explosive 254 | . . 254 Electromagnetic . | . . . Impact . | . . . Slashing . | . . . Piercing . | . . . Highest Corruption . | . . . Average Corruption . | . . . Corruption Purged . | . . . Corruption Blocked . | . . . Overload Shots . | . . . Overflow Damage . | . . . Projectiles . | . . . Explosions . | . . . Melee . | . . . Knockbacks . | . . . Impact . | . . . Kinetic . | . . . Secondary . | . . . Self-Inflicted Damage . | . . . Shots . | . . . Rammed . | . . . Targets Rammed . | . . . Kicked . | . . . Crushed . | . . . Highest Temperature 340 | . 340 123 Average Temperature 97 | . 122 31 Received Heat Transfer 444 | . 291 153 Effects 3 | . 3 . Interference 3 | . 3 . Siege Activations . | . . . Martial Activations . | . . . Shielding Activations . | . . . Robots Disrupted . | . . . Combat Hostiles . | . . . Robots Corrupted . | . . . Combat Hostiles . | . . . Parts Fried . | . . . Impact Corruptions . | . . . Robots Melted . | . . . Combat Hostiles . | . . . Parts Melted 5 | . 3 2 Heat Transferred 2174 | . 1110 1064 Parts Sabotaged . | . . . Parts Stolen . | . . . Parts Stripped . | . . . Power Chain Reactions . | . . . Alert | -11 -10 -10 ------- Run | Yrd Mat Sub Maximum Alert Level . | . . . Low Security (%) 100 | 100 100 . Level 1 . | . . . Level 2 . | . . . Level 3 . | . . . Level 4 . | . . . Level 5 . | . . . High Security . | . . . Max Security . | . . . Peak Influence 110 | 10 110 . Initial . | . . . Average 38 | 1 43 . Influence Increases 532 | 40 442 50 Destroy 0b10 Robot/C 280 | . 240 40 Destroy 0b10 Robot/NC 50 | 40 10 . Destroy Leader 72 | . 62 10 Successful Hack 10 | . 10 . Lose Combat Pursuer 120 | . 120 . Influence Decreases 532 | 40 432 60 Entered New Map 6 | . . 6 Time Decay 473 | 40 379 54 Lost Part 50 | . 50 . Purge Threat 3 | . 3 . Squads Dispatched 4 | . 4 . Investigation 3 | . 3 . Extermination . | . . . Reinforcement 1 | . 1 . Assault . | . . . Garrison . | . . . Intercept . | . . . Searches Triggered . | . . . Construction Impeded . | . . . Haulers Reinforced . | . . . Active Scanning Responses . | . . . Cargo Convoy Interrupts . | . . . Stealth | -11 -10 -10 --------- Run | Yrd Mat Sub Distress Signals 5 | . 5 . Communications Jammed . | . . . Distress Signals . | . . . Times Spotted 38 | . 28 10 Peak Tracking Total 7 | . 7 3 Tactical Retreats 4 | . 4 . Traps | -11 -10 -10 ------- Run | Yrd Mat Sub Traps Triggered 3 | . 2 1 Indirectly . | . . . Trap Hack Attempts . | . . . Triggered . | . . . Disarmed . | . . . Reprogrammed . | . . . Reused . | . . . Traps Extracted . | . . . Installed . | . . . Triggered . | . . . Machines | -11 -10 -10 ---------- Run | Yrd Mat Sub Machines Disabled . | . . . Max in Single Turn . | . . . Machines Repaired . | . . . Machines Dismantled . | . . . Machines Sabotaged . | . . . Overloaded Fab Kills . | . . . Hacking | -11 -10 -10 --------- Run | Yrd Mat Sub Machines Accessed 9 | . 8 1 Terminals 7 | . 7 . Fabricators . | . . . Repair Stations 1 | . 1 . Recycling Units . | . . . Scanalyzers . | . . . Garrison Access . | . . . Total Hacks 22 | . 19 3 Successful 12 | . 9 3 Failed 9 | . 9 . Catastrophic 4 | . 4 . Database Lockouts 1 | . 1 . Manual 13 | . 13 . Terminals 17 | . 17 . Fabricators . | . . . Repair Stations 2 | . 2 . Recycling Units . | . . . Scanalyzers . | . . . Garrison Access . | . . . Terminal Hacks 7 | . 4 3 Record 3 | . . 3 Robot Analysis 1 | . 1 . Prototype ID Bank 1 | . 1 . Unreport Threat 1 | . 1 . Recall Investigation 1 | . 1 . Fabricator Hacks . | . . . Repair Station Hacks 2 | . 2 . Scan Component 1 | . 1 . Repair 1 | . 1 . Recycling Unit Hacks . | . . . Scanalyzer . | . . . Garrison Access Hacks . | . . . Unauthorized Hacks 3 | . 3 . Terminals 3 | . 3 . Botnet 3 | . 3 . Fabricators . | . . . Repair Stations . | . . . Recycling Units . | . . . Scanalyzers . | . . . Garrison Access . | . . . Data Cores Recovered . | . . . Used . | . . . Hacking Detections 7 | . 7 . Full Trace Events 1 | . 1 . Feedback Events . | . . . Feedback Blocked . | . . . Robot Schematics Acquired . | . . . Robots Built . | . . . Authchips . | . . . Time . | . . . Total Robot Build Rating . | . . . Part Schematics Acquired . | . . . Parts Built . | . . . Authchips . | . . . Time . | . . . Total Part Build Rating . | . . . Parts Repaired 1 | . 1 . Time 32 | . 32 . Parts Recycled . | . . . Recycled Matter . | . . . Retrieved Matter . | . . . Retrieved Components . | . . . Parts Scanalyzed . | . . . Part Schematics Acquired . | . . . Parts Damaged . | . . . Bothacking | -11 -10 -10 ------------ Run | Yrd Mat Sub Used RIF Installer . | . . . Robots Hacked . | . . . Non-combat . | . . . Combat . | . . . Robot Hacks Applied . | . . . Relay Couplers Released . | . . . Fabnet Peak Effective % . | . . . Robots Rewired . | . . . Allies Hacked . | . . . Hacks Repelled . | . . . Allies | -11 -10 -10 -------- Run | Yrd Mat Sub Total Allies . | . . . Largest Group . | . . . Highest-Rated Group . | . . . Highest-Rated Ally . | . . . Total Orders . | . . . Ally Attacks . | . . . Total Damage . | . . . Kills . | . . . Allies Corrupted . | . . . Allies Melted . | . . . Intel | -11 -10 -10 ------- Run | Yrd Mat Sub Active Infowar (turns) 2231 | 134 1065 1032 Structural 1028 | . . 1028 Seismic 1203 | 134 1065 4 Robot Analysis Total 1 | . 1 . Derelict Logs Recovered 1 | . . 1 Drone Launches . | . . . Drone Recoveries . | . . . Exploration | -11 -10 -10 ------------- Run | Yrd Mat Sub Turns Passed 3158 | 175 1162 1821 Spaces Moved 1750 | 72 859 819 Core . | . . . Treads 820 | . 2 818 Legs 60 | 60 . . Wheels 870 | 12 857 1 Hover . | . . . Flight . | . . . Fastest Speed 80 | 80 80 110 Average Speed 148 | 113 104 197 Slowest Speed 240 | 120 240 240 Overloaded Moves . | . . . Propulsion Burnouts . | . . . Robots Hopped . | . . . Potential Cave-ins . | . . . Cave-ins Triggered . | . . . Exploration Rate (%) 50 | 4 97 50 Regions Visited 2 Branch Regions 1 Pre-discovered Areas . | . . . Known Exits Taken . | . . . Unknown Exits Taken 2 | 1 1 . Scrap Searched 8 | . . 8 Spaces Dug . | . . . Terrain Destroyed 8 | . . 8 Melee . | . . . Projectile 1 | . . 1 AOE 7 | . . 7 Terrain Rammed . | . . . Walls Destroyed . | . . . Machines Disabled . | . . . Actions | -11 -10 -10 --------- Run | Yrd Mat Sub Total 2098 | 113 1025 960 Wait 110 | 6 70 34 Move 1748 | 71 858 819 Hop . | . . . Pick Up 47 | 1 21 25 Fast Attach 17 | 2 5 10 Attach 5 | . 2 3 Detach 4 | 1 . 3 Swap 19 | 1 9 9 Drop 31 | 2 9 20 Fire 112 | 29 51 32 Melee 3 | . . 3 Ram . | . . . Kick . | . . . Crush . | . . . Escape Stasis . | . . . Rewire . | . . . Trap . | . . . Miscellaneous 2 | . . 2 Route ------- -11/Scrapyard -10/Materials (discovered 6 exits: [*Mat x3] / [*Min x2] / *Sub) -10/Subcaves (discovered 1 exit: [*Mat]) History --------- Turn | Location | Event 1 | -11/Scrapyard | Discovered new exit (range 1) 176 | -11/Scrapyard | Entered Materials 337 | -10/Materials | Discovered new exit (range 16) 364 | -10/Materials | Discovered new exit (range 13) 394 | -10/Materials | Discovered new exit (range 13) 650 | -10/Materials | Repaired Particle Gun 745 | -10/Materials | Discovered new exit (range 16) 754 | -10/Materials | Central database locked down 1284 | -10/Materials | Discovered new exit (range 15) 1327 | -10/Materials | Discovered new exit (range 13) 1338 | -10/Materials | Entered Subcaves 1366 | -10/Subcaves | Build established: Mutant 1377 | -10/Subcaves | A Subdweller sparked back to life 1388 | -10/Subcaves | Core integrity fell below 50% 1461 | -10/Subcaves | Found Prototype Device 1461 | -10/Subcaves | Identified Power Bank 1463 | -10/Subcaves | Attached Power Bank, gained temporary slots: Power x3 1487 | -10/Subcaves | Shifting Twisted Machinery released Shrapnel Trap 1584 | -10/Subcaves | Shifting Twisted Machinery released Shrapnel Trap 1772 | -10/Subcaves | Discovered new exit (range 9) 2298 | -10/Subcaves | Visited Clippyterm 2305 | -10/Subcaves | Learned Research security intel 2507 | -10/Subcaves | Disturbed a concealed Subdweller 2738 | -10/Subcaves | Core integrity fell below 20% 3159 | -10/Subcaves | Destroyed by Piercing Trap Last Messages --------------- 02849_ Acquired 10 matter. 02854_ Dropped Battle Rifle. 02855_ Acquired Sub. Machine Gun. 02856_ Dropped Particle Cannon. 02858_ Acquired Battle Rifle. 02864_ Acquired 10 matter. 02886_ Acquired derelict log, extracted data. Data stored: Storage entrances (x1). 02888_ Searching scrap... 02888_ Found Barrage Gun. 02888_ Found Battle Cannon. 02888_ Found 46 Matter. 02899_ Searching scrap... 02899_ Found Scrap Shield. 02899_ Found 31 Matter. 02923_ Subatomizers dissect the Sub. Power Source. 03095_ C3-7TK(u) tweaks Twisted Machinery. 03159_ Triggered Piercing Trap. 03159_ Spikes shoot up from the floor. 03159_ Critical hit (Impale). Map ----- +----------------------------------------------------+ | | | | | | | | | | | | | | | | | | | | | | | | | | | ?????????????????????????????????????????????????? | | ?????????????????????????????????????????????????? | | ?????????????????????????????????????????????????? | | ?????????????????????????????????????????????????? | | ?????????????????????????????????????????????????? | | ?????????????????????????< ?????????????????????? | | ????????????????????????# <<<#???????????????????? | | ????????????????????????<<< #???????????????????? | | ???????????????????????? < < #???????????????????? | | ????????????????????????< < <#???????????????????? | | ????????????????????????#<< <#???????????????????? | | ???????????????????????##<<<<#???????????????????? | | ??????????????????###### @ < #???????????????????? | | ??????????????????# # ##???????????????????? | | ??????????????????## <#????????????????????? | | ??????????????????#" ## ##????????????????????? | | ?????????????######" "#####?????????????????????? | | ####????????## ## < ### ????????????????????? | | #?????#### #???????????????????? | | ##????## ## #??????????????????? | | # #????# #?? #??????????????????? | | #????# #??? ?????????????????? | | ##???## # ## ???????????????? | | ####?# ##" ## ##?# ? ## ??????????????? | | #?## #"" "###???## ???????????????????? | | ## #??####" "#####???# ??????????????????? | | ?## #??# ##"" ##??? ??????????????????? | | ??## #??# "" #???? ?????????????????? | | ??### ##?## " ##??????????????????? | | ?## #### ""##"" % #???????????????????? | | ?# """"""" ??????????????????? | | ?## ## "" #"" #### ???????????????????? | | ??##?## ##"" ### #######????????????????????????? | | ??????#########??##??????????????????????????????? | | ?????????????????????????????????????????????????? | | ?????????????????????????????????????????????????? | | ?????????????????????????????????????????????????? | +----------------------------------------------------+ Best States ------------- Heat Dissipation 25 Energy Generation 15 Energy Capacity 200 Matter Stores 300 Matter Capacity 300 Sight Range 16 Terrain Scan Density 10 Armor Coverage 800 Evasion (%) 55 Recoil Reduction 2 Item Schematics ----------------- None Robot Schematics ------------------ None Fabricated ------------ Nothing Repaired ---------- Particle Gun | 40% | -10/Materials Alien Tech Used ----------------- None Achievements -------------- None Challenges ------------ None Game ------ Seed RecoilCouplerCompressor Manual? 0 Play Time 00:23:29 Cumulative 209.1 hours Start 2025.05.17 @ 12:59:52 End 2025.05.17 @ 13:24:51 Sessions 1 Manual Loads 0 Difficulty Rogue Special Mode None Game No. 159 Rogue 159 Adventurer 0 Explorer 0 Win Type - Total 4 Types 2/0/1/1/0/0/0/0/0/0 Lore% 37 Gallery% 69 Achievement% 64 Wizard Run 0 Options --------- Layout 1 ASCII 0 Keyboard 1 Movement Numpad Keybinds 0 Fullscreen 1 Font 48/Smallcaps Map View 55x35 Zoom Use 0% Tactical HUD 1 Map Filters NONE Filters NONE Steam 1 RUN: f013dd9c-47e1-41b3-865e-a0b965f01b49